{"text_format":"1","workbook":"xlsx","n_sheets":2,"sheets":["раздел","Лист1"],"not_rendered":{"charts":0,"images":0,"macros":0,"external_links":0,"defined_names":9,"comments":0,"pivot_tables":0},"unopened":[],"bounds":{"document_bytes":16777216,"sheet_cells":100000,"rows_first":2000,"rows_last":500,"rows_between":2000,"halvings":0,"cell_chars":16384,"cell_head_chars":4096},"cells_cut":0,"cells_raw":0,"read":"whole","date_system":"1900"}

{"sheet":"раздел","index":0,"n_rows":27,"n_cols":10,"rows_kept":27,"cut":false,"hidden":false,"merged":[]}
[null,null,null,null,null,null,null,null,null,999]
["Р_2",null,null,null,null,null,{"$f":"ROUND(PRODUCT(C2:E2),0)","v":0},{"$f":"ROUND(PRODUCT(C2,F2),0)","v":0},{"$f":"SUM(G2:H2)","v":0},2]
["Р_3",null,null,null,null,null,{"$f":"ROUND(PRODUCT(C3:E3),0)","v":0},{"$f":"ROUND(PRODUCT(C3,F3),0)","v":0},{"$f":"SUM(G3:H3)","v":0},2]
["Р_4",null,null,null,null,null,0,0,0,2]
["Р_5",null,null,null,null,null,0,0,0,2]
["Р_6",null,null,null,null,null,0,0,0,2]
["Р_7",null,null,null,null,null,0,0,0,2]
["Р_8",null,null,null,null,null,0,0,0,2]
["Р_9",null,null,null,null,null,{"$f":"ROUND(PRODUCT(C9:E9),0)","v":0},{"$f":"ROUND(PRODUCT(C9,F9),0)","v":0},{"$f":"SUM(G9:H9)","v":0},2]
["Р_10",null,null,null,null,null,{"$f":"ROUND(PRODUCT(C10:E10),0)","v":0},{"$f":"ROUND(PRODUCT(C10,F10),0)","v":0},{"$f":"SUM(G10:H10)","v":0},1]
["Р_11",null,null,null,null,null,0,0,0,1]
["Р_12",null,null,null,null,null,0,0,0,1]
["Р_13",null,null,null,null,null,0,0,0,1]
["Р_14",null,null,null,null,null,0,0,0,1]
["Р_15",null,null,null,null,null,0,0,0,1]
["Р_16",null,null,null,null,null,0,0,0,3]
["Р_17",null,null,null,null,null,0,0,0,3]
["Р_18",null,null,null,null,null,0,0,0,3]
["Р_19",null,null,null,null,null,0,0,0,3]
["Р_20",null,null,null,null,null,0,0,0,3]
["Р_21",null,null,null,null,null,0,0,0,3]
["Р_22",null,null,null,null,null,0,0,0,3]
["Р_23",null,null,null,null,null,0,0,0,3]
["Р_24",null,null,null,null,null,0,0,0,3]
["Р_25",null,null,null,null,null,0,0,0,4]
["Р_26",null,null,null,null,null,0,0,0,4]
["Р_27",null,null,null,null,null,0,0,0,4]

{"sheet":"Лист1","index":1,"n_rows":36,"n_cols":1,"rows_kept":36,"cut":false,"hidden":false,"merged":[]}
["всякое"]
["всякое"]
["ЭТАП_1"]
["всякое"]
["всякое"]
["всякое"]
["всякое"]
["всякое"]
["всякое"]
["всякое"]
["всякое"]
["всякое"]
["ЭТАП_2"]
["всякое"]
["всякое"]
["всякое"]
["всякое"]
["всякое"]
["всякое"]
["всякое"]
["всякое"]
["всякое"]
["всякое"]
["всякое"]
["всякое"]
["всякое"]
["всякое"]
["всякое"]
["всякое"]
["всякое"]
["всякое"]
["всякое"]
["всякое"]
["всякое"]
["всякое"]
["всякое"]